bitfinex-derivatives/quotes_BTCF0:USTF0_20250416
["timestamp","ask_amount","ask_price","bid_price","bid_amount"]
[1744780083976,0.1822182,83747.0,83746.0,0.1194171]
[1744780088075,0.119421,83744.0,83743.0,0.3608]
[1744780088479,0.150121,83744.0,83743.0,0.4802225]
[1744780088680,0.182321,83744.0,83743.0,0.1194225]
[1744780089587,0.182321,83744.0,83743.0,0.1504225]
[1744780090481,0.182321,83744.0,83743.0,0.1194225]
[1744780094888,0.0629,83744.0,83728.0,0.00017919]
[1744780095086,0.119431,83737.0,83736.0,0.4802325]
[1744780095283,0.119431,83737.0,83736.0,0.1194325]
[1744780095482,0.216031,83737.0,83736.0,0.1194325]
[1744780096990,0.216031,83737.0,83735.0,0.0597169]
[1744780096991,0.1194382,83732.0,83731.0,0.1194384]
[1744780097887,0.1194424,83729.0,83727.0,0.1194444]
[1744780098080,0.1194424,83729.0,83726.0,0.1194466]
[1744780098284,0.1194424,83729.0,83724.0,0.1194492]
[1744780098485,0.1194424,83729.0,83728.0,0.11962309]
[1744780098687,0.2119424,83729.0,83728.0,0.11962309]
[1744780099193,0.2119424,83729.0,83728.0,0.00017919]
[1744780104404,0.0305,83729.0,83728.0,0.11962309]
[1744780104590,8e-05,83729.0,83728.0,0.11962309]
[1744780105004,0.0597172,83735.0,83734.0,0.1791473]
[1744780105397,0.1792348,83735.0,83734.0,0.1791473]
[1744780105998,0.1792348,83735.0,83734.0,0.2444473]
[1744780123009,8e-05,83735.0,83734.0,0.2444473]
[1744780123215,0.2113266,83748.0,83734.0,0.2750163]
[1744780123512,0.1516165,83748.0,83747.0,0.1194168]
[1744780125216,0.1516165,83748.0,83747.0,0.1796168]
[1744780128311,0.1516165,83748.0,83747.0,0.0301]
[1744780128505,0.1516165,83748.0,83747.0,0.1495168]
[1744780128918,0.1838165,83748.0,83747.0,0.1495168]
[1744780130615,0.1838165,83748.0,83747.0,0.1194168]
[1744780132504,0.0644,83748.0,83747.0,0.1194168]
[1744780132708,0.1516153,83748.0,83747.0,0.1503168]
[1744780133018,0.1516153,83748.0,83747.0,0.1805168]
[1744780133417,0.1516953,83748.0,83747.0,0.1805168]
[1744780134517,0.03228,83748.0,83747.0,0.1805168]
[1744780137314,0.1516953,83748.0,83747.0,0.1805168]
[1744780137519,0.03228,83748.0,83747.0,0.1805168]
[1744780137721,0.1516953,83748.0,83747.0,0.1805168]
[1744780139121,0.03228,83748.0,83747.0,0.1805168]
[1744780140428,0.1516953,83748.0,83747.0,0.1805168]
[1744780141123,8e-05,83748.0,83747.0,0.1805168]
[1744780141328,0.1194953,83748.0,83747.0,0.1805168]
[1744780141924,0.1818953,83748.0,83747.0,0.1805168]
[1744780142129,0.1194339,83735.0,83734.0,0.5399425]
[1744780142423,0.1195139,83735.0,83734.0,0.5996593]
[1744780142922,8e-05,83735.0,83734.0,0.5996593]
[1744780143326,0.03168,83735.0,83734.0,0.5996593]
[1744780143528,0.06248,83735.0,83734.0,0.6609593]
[1744780145627,0.1819139,83735.0,83734.0,0.6609593]
[1744780148932,0.06248,83735.0,83734.0,0.6609593]
[1744780149127,0.1819139,83735.0,83734.0,0.6609593]
[1744780149633,0.1503139,83735.0,83734.0,0.6609593]
[1744780151833,0.03088,83735.0,83734.0,0.6609593]
[1744780152034,8e-05,83735.0,83734.0,0.6609593]
[1744780152233,0.0301,83740.0,83739.0,0.1194282]
[1744780152532,0.00010801,83742.0,83741.0,0.1194253]
[1744780152729,0.1194157,83748.0,83738.0,0.4833144]
[1744780152730,0.1194157,83748.0,83747.0,0.1194168]
[1744780153032,0.1194157,83748.0,83747.0,0.4802168]
[1744780153835,0.1194157,83748.0,83747.0,0.5433168]
[1744780156937,0.1523157,83748.0,83747.0,0.5433168]
[1744780157245,0.00010801,83749.0,83747.0,0.4239]
[1744780157432,0.00010801,83749.0,83748.0,0.1194153]
[1744780157634,0.0926043,83753.0,83749.0,0.0597065]
[1744780157833,0.0329,83753.0,83752.0,0.1194096]
[1744780158039,0.1523082,83753.0,83752.0,0.1194096]
[1744780158233,0.1523082,83753.0,83752.0,0.1502096]
[1744780158434,0.1842082,83753.0,83752.0,0.1502096]
[1744780160935,0.1842082,83753.0,83752.0,0.1816096]
[1744780163939,0.1194153,83748.0,83747.0,0.4802168]
[1744780164334,0.1854153,83748.0,83747.0,0.4802168]
[1744780164540,0.1854153,83748.0,83747.0,0.3608]
[1744780164736,0.1854153,83748.0,83747.0,0.4802168]
[1744780167145,0.1854153,83748.0,83747.0,0.5421168]
[1744780167345,0.1854953,83748.0,83747.0,0.5725168]
[1744780167544,0.1854953,83748.0,83747.0,0.5114168]
[1744780171445,0.1854953,83748.0,83747.0,0.5437168]
[1744780172148,0.1854153,83748.0,83747.0,0.5437168]
[1744780172349,0.1854953,83748.0,83747.0,0.5437168]
[1744780172850,0.1523953,83748.0,83747.0,0.5437168]
[1744780173951,0.1523953,83748.0,83747.0,0.5114168]
[1744780174150,0.1828953,83748.0,83747.0,0.5114168]
[1744780175047,0.1828953,83748.0,83747.0,0.5446168]
[1744780177452,0.06348,83748.0,83747.0,0.5446168]
[1744780184957,0.03298,83748.0,83747.0,0.5446168]
[1744780187658,0.03298,83748.0,83747.0,0.1838168]
[1744780187858,0.03298,83748.0,83747.0,0.5446168]
[1744780188956,8e-05,83748.0,83747.0,0.5446168]
[1744780189853,0.1500054,83755.0,83754.0,0.1194068]
[1744780190260,0.1500054,83755.0,83754.0,0.1525068]
[1744780190461,0.1831054,83755.0,83754.0,0.1525068]
[1744780192763,0.1831054,83755.0,83754.0,0.1834068]
[1744780194064,0.179117,83753.0,83752.0,0.1194093]
[1744780194265,0.0597047,83753.0,83752.0,0.1194093]
[1744780194665,0.1219047,83753.0,83752.0,0.1519093]
[1744780196666,0.1219047,83753.0,83746.0,0.11959609]
[1744780196667,0.1194153,83748.0,83746.0,0.11959609]
[1744780196968,0.1194153,83748.0,83747.0,0.4802168]
[1744780197168,0.1846153,83748.0,83747.0,0.4802168]
[1744780197868,0.1846153,83748.0,83747.0,0.5104168]
[1744780198459,0.1846153,83748.0,83747.0,0.4802168]
[1744780199867,0.1846153,83748.0,83747.0,0.3608]
[1744780200161,0.1846153,83748.0,83723.0,0.18367337]
[1744780200162,0.1194282,83740.0,83737.0,0.4205152]
[1744780200369,0.1194282,83740.0,83739.0,0.1791369]
[1744780200370,0.1791416,83740.0,83739.0,0.1791369]
[1744780200560,0.0597122,83742.0,83740.0,0.0597133]
[1744780200763,0.06864959,83750.0,83740.0,0.0329]
[1744780200958,0.1791306,83748.0,83747.0,0.1791215]
[1744780201659,0.1791306,83748.0,83747.0,0.0597076]
[1744780201859,0.1792106,83748.0,83747.0,0.0597076]
[1744780202062,0.1194196,83745.0,83744.0,0.2120296]
[1744780202968,0.1194282,83740.0,83739.0,0.1791396]
[1744780204675,0.1194282,83740.0,83739.0,0.2448396]
[1744780208574,0.1791368,83745.0,83744.0,0.179126]
[1744780209075,0.1791368,83745.0,83744.0,0.0597092]
[1744780209475,0.1792168,83745.0,83744.0,0.0597092]
[1744780209777,0.059712,83742.0,83740.0,0.0899133]
[1744780210076,0.1194253,83741.0,83740.0,0.2093386]
[1744780211277,0.1194253,83741.0,83740.0,0.2420386]
[1744780212074,0.1515253,83741.0,83740.0,0.2420386]
[1744780215072,0.0321,83741.0,83740.0,0.2420386]
[1744780215278,0.1516053,83741.0,83740.0,0.2420386]
[1744780218580,8e-05,83741.0,83740.0,0.2420386]
[1744780219176,0.1194243,83742.0,83741.0,0.1194253]
[1744780219375,0.1194243,83742.0,83741.0,0.1836253]
[1744780220476,0.210033,83744.0,83743.0,0.1194225]
[1744780220882,0.210033,83744.0,83743.0,0.1846225]
[1744780222678,0.0906107,83744.0,83743.0,0.1846225]
[1744780222980,0.0309,83744.0,83743.0,0.1846225]
[1744780223481,0.150321,83744.0,83743.0,0.1846225]
[1744780225386,0.0309,83744.0,83743.0,0.1846225]
[1744780225578,0.150321,83744.0,83743.0,0.1846225]
[1744780225980,0.0309,83744.0,83743.0,0.1846225]
[1744780226183,0.00010801,83746.0,83745.0,0.1194196]
[1744780226587,0.0305,83752.0,83743.0,0.184621]
[1744780226588,0.0305,83752.0,83751.0,0.1194111]
[1744780227287,0.11958702,83753.0,83752.0,0.1194096]
[1744780227983,0.005,83760.0,83759.0,0.1193997]
[1744780228183,0.005,83760.0,83759.0,0.4801997]
[1744780228385,0.005,83760.0,83759.0,0.5120997]
[1744780228686,0.0596846,83781.0,83759.0,0.4027]
[1744780228876,0.1503697,83780.0,83779.0,0.1193712]
[1744780229284,0.1504497,83780.0,83779.0,0.1193712]
[1744780229476,0.1503697,83780.0,83779.0,0.0315]
[1744780229681,0.1504497,83780.0,83779.0,0.04048631]
[1744780229891,0.1504497,83780.0,83779.0,0.15985751]
[1744780230080,0.1504497,83780.0,83779.0,0.16085751]
[1744780231485,0.1504497,83780.0,83779.0,0.04148631]
[1744780232183,0.1504497,83780.0,83779.0,0.04248631]
[1744780232389,0.1504497,83780.0,83779.0,0.16185751]
[1744780234378,0.1504497,83780.0,83779.0,0.19405751]
[1744780236280,0.1504497,83780.0,83779.0,0.01098631]
[1744780236684,0.1504497,83780.0,83779.0,0.002]
[1744780242493,0.1193982,83760.0,83759.0,0.3608]
[1744780242887,0.2162982,83760.0,83759.0,0.4801997]
[1744780243191,0.2162982,83760.0,83759.0,0.48894897]
[1744780243787,0.2162982,83760.0,83759.0,0.36954927]
[1744780243993,0.2162982,83760.0,83759.0,0.48894897]
[1744780245090,0.2162982,83760.0,83759.0,0.00874927]
[1744780245281,0.2162982,83760.0,83751.0,0.15088988]
[1744780245282,0.1194096,83752.0,83751.0,0.15088988]
[1744780245687,0.1803096,83752.0,83751.0,0.15088988]
[1744780246083,0.1803096,83752.0,83751.0,0.04033267]
[1744780246489,0.1803096,83752.0,83751.0,0.07253267]
[1744780247694,0.1803096,83752.0,83751.0,0.19394377]
[1744780248191,0.1803096,83752.0,83751.0,0.04233267]
[1744780249594,0.1803096,83752.0,83751.0,0.13044377]
[1744780249785,0.1803096,83752.0,83751.0,0.01103267]
[1744780251291,0.1803096,83752.0,83751.0,0.04293267]
[1744780252198,0.1803096,83752.0,83751.0,0.16234377]
[1744780253200,0.3608,83758.0,83757.0,0.1194025]
[1744780253399,0.0309,83767.0,83766.0,0.1193883]
[1744780253597,0.00014581,83783.0,83779.0,0.1193712]
[1744780253798,0.1193573,83789.0,83785.0,0.1193626]
[1744780254296,0.0308,83788.0,83785.0,0.1193626]
[1744780254493,0.00508,83786.0,83785.0,0.1193626]
[1744780254691,0.005,83786.0,83785.0,0.1193626]
[1744780254893,0.1244412,83786.0,83785.0,0.1193626]
[1744780255095,0.00508,83786.0,83785.0,0.1193626]
[1744780255298,0.1244412,83786.0,83785.0,0.1193626]
[1744780258096,0.119364,83784.0,83783.0,0.1837639]
[1744780258301,0.119364,83784.0,83783.0,0.0644]
[1744780258700,0.183764,83784.0,83783.0,0.1837655]
[1744780260203,0.0647613,83786.0,83785.0,0.1193626]
[1744780261404,0.119364,83784.0,83783.0,0.0644]
[1744780261902,0.119364,83784.0,83783.0,0.1837655]
[1744780262403,0.119364,83784.0,83783.0,0.5445655]
[1744780262797,0.1193712,83779.0,83778.0,0.1507726]
[1744780262995,0.1193726,83778.0,83774.0,0.3608]
[1744780263195,0.0596927,83770.0,83765.0,0.0301]
[1744780263411,0.1193897,83766.0,83765.0,0.0301]
[1744780264102,0.1193897,83766.0,83765.0,0.1494911]
[1744780264906,0.1193897,83766.0,83765.0,0.1815911]
[1744780269906,0.059692,83770.0,83765.0,0.423]
[1744780270210,0.059692,83770.0,83769.0,0.1193854]
[1744780273211,0.059692,83770.0,83769.0,0.1829854]
[1744780277711,0.00010801,83772.0,83771.0,0.1193826]
[1744780278216,0.1193811,83772.0,83771.0,0.1819826]
[1744780278518,0.1194611,83772.0,83771.0,0.1819826]
[1744780279009,0.1498611,83772.0,83771.0,0.1819826]
[1744780280116,0.1498611,83772.0,83771.0,0.0304]
[1744780280318,0.1193854,83769.0,83768.0,0.0596933]
[1744780280510,0.1193854,83769.0,83768.0,0.0323]
[1744780280709,0.1193911,83765.0,83764.0,0.1519919]
[1744780281109,0.1193911,83765.0,83762.0,0.0321]
[1744780281110,0.119394,83763.0,83762.0,0.0321]
[1744780281304,0.119394,83763.0,83762.0,0.1193954]
[1744780281818,0.0596962,83764.0,83758.0,0.424]
[1744780282020,0.0596991,83761.0,83760.0,0.0305]
[1744780282512,0.1205991,83761.0,83760.0,0.0305]
[1744780283113,0.1511991,83761.0,83760.0,0.0305]
[1744780283319,0.1193997,83759.0,83758.0,0.3608]
[1744780284204,0.1193997,83759.0,83758.0,0.3913]
[1744780284404,0.1193997,83759.0,83758.0,0.3608]
[1744780285514,0.1193997,83759.0,83758.0,0.3933]
[1744780286719,0.1193997,83759.0,83758.0,0.5127011]
[1744780286912,0.1193997,83759.0,83758.0,0.5450011]
[1744780289419,0.1193997,83759.0,83758.0,0.1842011]
[1744780291423,0.1494977,83761.0,83760.0,0.1193982]
[1744780292310,0.1494977,83761.0,83760.0,0.1824982]
[1744780294621,0.1194011,83758.0,83757.0,0.36097908]
[1744780294827,0.1194011,83758.0,83757.0,0.48038058]
[1744780295026,0.1517011,83758.0,83757.0,0.48038058]
[1744780295918,0.1847011,83758.0,83757.0,0.51208058]
[1744780299834,0.1847011,83758.0,83757.0,0.54308058]
[1744780301330,0.033,83758.0,83757.0,0.54308058]
[1744780301533,0.1524011,83758.0,83757.0,0.54308058]
[1744780301829,0.1524811,83758.0,83757.0,0.54308058]
[1744780303833,0.1524811,83758.0,83757.0,0.51208058]
[1744780304034,0.1833811,83758.0,83757.0,0.51208058]
[1744780304328,8e-05,83758.0,83757.0,0.54378058]
[1744780304532,0.00010801,83761.0,83760.0,0.1193982]
[1744780304734,0.00017908,83774.0,83767.0,0.0596941]
[1744780304938,0.00017908,83774.0,83773.0,0.1193797]
[1744780305330,0.00017908,83774.0,83773.0,0.1821797]
[1744780305836,0.00025908,83774.0,83773.0,0.1821797]
[1744780306036,0.11963738,83774.0,83773.0,0.1821797]
[1744780307035,0.00025908,83774.0,83773.0,0.1821797]
[1744780308633,0.03305908,83774.0,83773.0,0.1821797]
[1744780310840,0.00025908,83774.0,83773.0,0.1821797]
[1744780311633,0.00017908,83774.0,83773.0,0.2021797]
[1744780311832,0.00025908,83774.0,83773.0,0.2021797]
[1744780312133,0.00025908,83774.0,83773.0,0.6412997]
[1744780312339,0.00010801,83781.0,83780.0,0.1193697]
[1744780312541,0.00010801,83781.0,83780.0,0.4801697]
[1744780313335,0.00010801,83781.0,83780.0,0.5451697]
[1744780315338,0.005,83786.0,83785.0,0.1193626]
[1744780316038,0.00508,83786.0,83785.0,0.1839626]
[1744780319345,0.0312,83791.0,83790.0,0.1193555]
[1744780319546,0.00010801,83792.0,83791.0,0.1193541]
[1744780319849,0.2193412,83800.0,83799.0,0.1193427]
[1744780320345,0.2194212,83800.0,83799.0,0.2129427]
[1744780320546,0.2194212,83800.0,83799.0,0.2218007]
[1744780321146,0.2497212,83800.0,83799.0,0.2218007]
[1744780322447,0.2497212,83800.0,83799.0,0.2228007]
[1744780324737,0.1303,83800.0,83799.0,0.2228007]
[1744780324952,0.10008,83800.0,83799.0,0.2228007]
[1744780325540,0.005,83812.0,83803.0,0.0596678]
[1744780325747,0.1511203,83815.0,83810.0,0.3608]
[1744780326044,0.0596526,83826.0,83818.0,0.1193156]
[1744780326045,0.00026573,83819.0,83818.0,0.1193156]
[1744780326248,0.1193087,83823.0,83822.0,0.0596543]
[1744780327550,0.1193087,83823.0,83822.0,0.0606543]
[1744780328145,0.1193087,83823.0,83822.0,0.1223543]
[1744780328943,0.1193087,83823.0,83822.0,0.1233543]
[1744780329346,0.1834087,83823.0,83822.0,0.1233543]
[1744780331339,0.1834087,83823.0,83822.0,0.0929543]
[1744780333451,0.1834087,83823.0,83822.0,0.002]
[1744780335250,0.1834087,83823.0,83822.0,0.1213099]
[1744780336954,0.1834887,83823.0,83822.0,0.1213099]
[1744780339663,0.1834887,83823.0,83822.0,0.1203099]
[1744780339954,0.1834887,83823.0,83822.0,0.001]
[1744780340261,0.1834887,83823.0,83822.0,0.1203099]
[1744780340955,0.1834887,83823.0,83822.0,0.1193099]
[1744780341156,0.1834887,83823.0,83822.0,0.1203099]
[1744780342449,0.1834887,83823.0,83822.0,0.1504099]
[1744780342859,0.1834887,83823.0,83822.0,0.1834099]
[1744780343458,0.06418,83823.0,83822.0,0.1834099]
[1744780343656,8e-05,83823.0,83822.0,0.1834099]
[1744780343966,8e-05,83823.0,83822.0,0.2143099]
[1744780344165,0.1193053,83826.0,83825.0,0.1193056]
[1744780344460,0.1501053,83826.0,83825.0,0.1193056]
[1744780344663,0.1501053,83826.0,83825.0,0.1824056]
[1744780345268,0.0308,83826.0,83825.0,0.1824056]
[1744780345461,0.1501042,83826.0,83825.0,0.1824056]
[1744780345661,0.1501042,83826.0,83825.0,0.1834056]
[1744780346269,0.1193042,83826.0,83825.0,0.1834056]
[1744780346864,0.1193842,83826.0,83825.0,0.1834056]
[1744780347870,8e-05,83826.0,83825.0,0.1834056]
[1744780348067,0.1193842,83826.0,83825.0,0.1834056]
[1744780354875,8e-05,83826.0,83825.0,0.1834056]
[1744780356371,0.1193842,83826.0,83825.0,0.1834056]
[1744780356779,0.1836842,83826.0,83825.0,0.1834056]
[1744780356972,0.1193842,83826.0,83825.0,0.1834056]
[1744780361280,0.1514842,83826.0,83825.0,0.1834056]
[1744780361973,0.03218,83826.0,83825.0,0.1834056]
[1744780363676,0.1514842,83826.0,83825.0,0.1834056]
[1744780366375,0.1840842,83826.0,83825.0,0.1834056]
[1744780366968,0.2159842,83826.0,83825.0,0.1834056]
[1744780369873,8e-05,83826.0,83825.0,0.1834056]
[1744780370072,0.0596509,83828.0,83827.0,0.1789528]
[1744780371687,0.0926509,83828.0,83827.0,0.1799528]
[1744780371879,0.0926509,83828.0,83827.0,0.001]
[1744780372185,0.1238509,83828.0,83827.0,0.001]
[1744780372376,0.1238509,83828.0,83827.0,0.1203028]
[1744780373488,0.11940691,83830.0,83829.0,0.1193]
[1744780373689,0.1192989,83830.0,83829.0,0.1193]
[1744780373881,0.1193789,83830.0,83829.0,0.1193]
[1744780374787,0.1193789,83830.0,83829.0,0.1203]
[1744780378294,0.1511789,83830.0,83829.0,0.1203]
[1744780379479,0.1821789,83830.0,83829.0,0.1203]
[1744780380391,0.2143789,83830.0,83829.0,0.1203]
[1744780381884,0.2143789,83830.0,83829.0,0.1522]
[1744780382791,0.1821789,83830.0,83829.0,0.1522]
[1744780383084,0.1821789,83830.0,83829.0,0.1844]
[1744780383279,0.1193789,83830.0,83829.0,0.1844]
[1744780383480,0.1143789,83830.0,83829.0,0.1844]
[1744780384380,0.1143789,83830.0,83829.0,0.19646631]
[1744780385993,0.1143789,83830.0,83829.0,0.1844]
[1744780386989,8e-05,83830.0,83829.0,0.1844]
[1744780387196,0.00010801,83833.0,83830.0,0.1192985]
[1744780387197,0.1192981,83831.0,83830.0,0.1192985]
[1744780387496,0.1192981,83831.0,83830.0,0.1496985]
[1744780388287,0.1192981,83831.0,83830.0,0.1506985]
[1744780388795,0.1192981,83831.0,83830.0,0.1813985]
[1744780397602,0.1505981,83831.0,83830.0,0.1813985]
[1744780397805,0.1505981,83831.0,83830.0,0.0621]
[1744780398103,0.1505981,83831.0,83830.0,0.1813985]
[1744780398299,0.1836981,83831.0,83830.0,0.1813985]
[1744780398806,0.1836981,83831.0,83830.0,0.1506985]
[1744780402305,0.1836981,83831.0,83830.0,0.1816985]
[1744780403906,0.1836981,83831.0,83830.0,0.0624]
[1744780404607,0.1836981,83831.0,83830.0,0.1816985]
[1744780405004,0.1836981,83831.0,83830.0,0.0624]
[1744780405508,0.1836981,83831.0,83830.0,0.1816985]
[1744780405897,0.1836981,83831.0,83830.0,0.0624]
[1744780406097,0.1836981,83831.0,83830.0,0.0314]
[1744780407910,0.19267211,83831.0,83830.0,0.0314]
[1744780408710,0.1836981,83831.0,83830.0,0.0314]
[1744780410110,0.19268261,83831.0,83830.0,0.0314]
[1744780413412,0.1193071,83824.0,83823.0,0.3608]
[1744780413811,0.12829161,83824.0,83823.0,0.3608]
[1744780414114,0.12829161,83824.0,83823.0,0.3936]
[1744780414406,0.19239161,83824.0,83823.0,0.3936]
[1744780414904,0.19339161,83824.0,83823.0,0.3946]
[1744780415516,0.19339161,83824.0,83823.0,0.3886309]
[1744780415701,0.19339161,83824.0,83823.0,0.001]
[1744780416307,0.1193185,83816.0,83815.0,0.0318]
[1744780416902,0.12830301,83816.0,83815.0,0.0318]
[1744780417311,0.1193199,83815.0,83814.0,0.00017897]
[1744780417503,0.1825199,83815.0,83814.0,0.00017897]
[1744780417702,0.19150441,83815.0,83814.0,0.00017897]
[1744780418507,0.19350441,83815.0,83814.0,0.03037897]
[1744780422119,0.16120441,83815.0,83814.0,0.03037897]
[1744780422513,0.13030441,83815.0,83814.0,0.03037897]
[1744780422713,0.13038441,83815.0,83814.0,0.03037897]
[1744780427218,0.16258441,83815.0,83814.0,0.03037897]
[1744780430922,0.13038441,83815.0,83814.0,0.03037897]
[1744780435823,0.16188441,83815.0,83814.0,0.03037897]
[1744780436125,0.22618441,83815.0,83814.0,0.03037897]
[1744780440919,0.16188441,83815.0,83814.0,0.03037897]
[1744780441318,0.16188441,83815.0,83814.0,0.02440909]
[1744780442924,0.16188441,83815.0,83810.0,0.1193266]
[1744780442925,0.1193313,83807.0,83806.0,0.00017897]
[1744780443318,0.1193398,83801.0,83800.0,0.0304]
[1744780443719,0.19302431,83801.0,83800.0,0.0304]
[1744780444518,0.19302431,83801.0,83800.0,0.0608]
[1744780446325,0.19502431,83801.0,83800.0,0.0608]
[1744780447227,0.1193412,83800.0,83799.0,0.008858]
[1744780447421,0.1193412,83800.0,83795.0,0.3608]
[1744780447422,0.1193455,83797.0,83796.0,0.0302]
[1744780447823,0.1801455,83797.0,83796.0,0.0302]
[1744780448326,0.1193469,83796.0,83795.0,0.3608]
[1744780448727,0.1801469,83796.0,83795.0,0.3608]
[1744780448927,0.18913141,83796.0,83795.0,0.3608]
[1744780449428,0.18913141,83796.0,83795.0,0.3933]
[1744780450832,0.19113141,83796.0,83795.0,0.3933]
[1744780451131,0.19113141,83796.0,83795.0,0.4257]
[1744780453431,0.16033141,83796.0,83795.0,0.4257]
[1744780453639,0.13033141,83796.0,83795.0,0.4568]
[1744780453829,0.01106451,83796.0,83795.0,0.8261484]
[1744780454021,0.00906451,83796.0,83795.0,0.8261484]
[1744780454228,0.01106451,83796.0,83795.0,0.8261484]
[1744780454431,0.13033141,83796.0,83795.0,0.8261484]
[1744780454632,0.12833141,83796.0,83795.0,0.8261484]
[1744780454831,0.13033141,83796.0,83795.0,0.5761484]
[1744780455136,0.13041141,83796.0,83795.0,0.5761484]
[1744780457937,0.12841141,83796.0,83795.0,0.5761484]
[1744780458138,0.13041141,83796.0,83795.0,0.5761484]
[1744780458830,0.13041141,83796.0,83795.0,0.4568]
[1744780459030,0.15901141,83796.0,83795.0,0.4568]
[1744780459230,0.13041141,83796.0,83795.0,0.4568]
[1744780459936,0.13041141,83796.0,83795.0,0.5761484]
[1744780463734,0.12841141,83796.0,83795.0,0.5761484]
[1744780464041,0.13041141,83796.0,83795.0,0.4257]
[1744780464241,0.16061141,83796.0,83795.0,0.4257]
[1744780465249,0.16061141,83796.0,83795.0,0.0649]
[1744780468539,0.19221141,83796.0,83795.0,0.0649]
[1744780480154,0.16061141,83796.0,83795.0,0.0649]
[1744780481156,0.15861141,83796.0,83795.0,0.0649]
[1744780481451,0.16061141,83796.0,83795.0,0.0649]
[1744780483150,0.01106451,83796.0,83795.0,0.1842484]
[1744780483558,0.01106451,83796.0,83795.0,0.1942484]
[1744780483758,0.01098451,83796.0,83795.0,0.1842484]
[1744780484059,0.01106451,83796.0,83795.0,0.1842484]
[1744780484759,0.00906451,83796.0,83795.0,0.1842484]
[1744780485062,0.01106451,83796.0,83795.0,0.1842484]
[1744780491377,0.01106451,83796.0,83795.0,0.5450484]
[1744780494579,0.01106451,83796.0,83795.0,0.5550484]
[1744780497085,0.01106451,83796.0,83795.0,0.1942484]
[1744780497286,0.01106451,83796.0,83795.0,0.9158484]
[1744780501485,0.01106451,83796.0,83795.0,0.9058484]
[1744780502585,0.13041141,83796.0,83795.0,0.9058484]
[1744780502784,0.13041141,83796.0,83795.0,0.7216]
[1744780502985,0.19271141,83796.0,83795.0,0.3608]
[1744780508900,0.1193484,83795.0,83794.0,0.00896433]
[1744780509086,0.1193512,83793.0,83792.0,0.11953137]
[1744780509492,0.1847512,83793.0,83792.0,0.11953137]
[1744780510397,0.19373571,83793.0,83792.0,0.00017897]
[1744780510791,0.19473571,83793.0,83792.0,0.11953157]
[1744780511195,0.19473571,83793.0,83792.0,0.00017897]
[1744780511686,0.19473571,83793.0,83792.0,0.00920483]
[1744780511897,0.19473571,83793.0,83792.0,0.00017897]
[1744780512288,0.19573571,83793.0,83792.0,0.00017897]
[1744780512493,0.22823571,83793.0,83792.0,0.00017897]
[1744780513889,0.22623571,83793.0,83792.0,0.00017897]
[1744780514095,0.22823571,83793.0,83792.0,0.00017897]
[1744780514692,0.22823571,83793.0,83792.0,0.11953157]
[1744780515190,0.22823571,83793.0,83792.0,0.15223157]
[1744780515997,0.22823571,83793.0,83792.0,0.1614097]
[1744780520794,0.22823571,83793.0,83792.0,0.1943097]
[1744780526209,0.22823571,83793.0,83792.0,0.1883384]
[1744780528606,0.19573571,83793.0,83792.0,0.1883384]
[1744780528802,0.16363571,83793.0,83792.0,0.1883384]
[1744780531898,0.16363571,83793.0,83792.0,0.00917813]
[1744780532104,0.1193541,83791.0,83790.0,0.0306]
[1744780532498,0.1801541,83791.0,83790.0,0.0306]
[1744780532699,0.18913861,83791.0,83790.0,0.0306]
[1744780532904,0.1193612,83786.0,83785.0,0.0324]
[1744780533207,0.1193612,83786.0,83784.0,0.00017897]
[1744780533208,0.1193626,83785.0,83784.0,0.00017897]
[1744780533413,0.2123626,83785.0,83784.0,0.00017897]
[1744780534211,0.22134711,83785.0,83784.0,0.00017897]
[1744780535707,0.22334711,83785.0,83784.0,0.00017897]
[1744780536610,0.16112711,83785.0,83784.0,0.00017897]
[1744780536814,0.16112711,83785.0,83784.0,0.03117897]
[1744780537117,0.16104711,83785.0,83784.0,0.09397897]
[1744780537315,0.16112711,83785.0,83784.0,0.09397897]
[1744780537809,0.16112711,83785.0,83784.0,0.21334297]
[1744780539214,0.16112711,83785.0,83784.0,0.09397897]
[1744780539411,0.15912711,83785.0,83784.0,0.09397897]
[1744780539617,0.16112711,83785.0,83784.0,0.09397897]
[1744780541017,0.13042711,83785.0,83784.0,0.21334297]
[1744780541412,0.12842711,83785.0,83784.0,0.21334297]
[1744780541613,0.13034711,83785.0,83784.0,0.21334297]
[1744780541814,0.13042711,83785.0,83784.0,0.21334297]
[1744780542009,0.00906451,83785.0,83784.0,0.21334297]
[1744780542319,0.01106451,83785.0,83784.0,0.21334297]
[1744780542719,0.13034711,83785.0,83784.0,0.21334297]
[1744780542907,0.13042711,83785.0,83784.0,0.21334297]
[1744780545526,0.12842711,83785.0,83784.0,0.21334297]
[1744780545725,0.13042711,83785.0,83784.0,0.21334297]
[1744780547623,0.12842711,83785.0,83784.0,0.21334297]
[1744780547824,0.13042711,83785.0,83784.0,0.21334297]
[1744780558933,0.16142711,83785.0,83784.0,0.21334297]
[1744780563341,0.16142711,83785.0,83784.0,0.57414297]
[1744780566546,0.22312711,83785.0,83784.0,0.54314297]
[1744780567542,0.22112711,83785.0,83784.0,0.54314297]
[1744780567842,0.22312711,83785.0,83784.0,0.48034297]
[1744780575045,0.22312711,83785.0,83784.0,0.51104297]
[1744780575438,0.22312711,83785.0,83784.0,0.36097897]
[1744780576342,0.22312711,83785.0,83784.0,0.00017897]
[1744780576945,0.10376451,83785.0,83782.0,0.00905819]
[1744780577147,0.1193712,83779.0,83778.0,0.480172]
[1744780577340,0.1193712,83779.0,83778.0,0.3608]
[1744780577542,0.1822712,83779.0,83778.0,0.4801726]
[1744780578348,0.19125571,83779.0,83778.0,0.4801726]
[1744780579745,0.19325571,83779.0,83778.0,0.4801726]
[1744780581456,0.01098451,83779.0,83778.0,0.48919138]
[1744780581648,0.01098451,83779.0,83778.0,0.58179138]
[1744780581843,0.0331,83784.0,83778.0,0.61179138]
[1744780582054,0.00942882,83783.0,83782.0,0.1790503]
[1744780582649,0.00950882,83783.0,83782.0,0.2406503]
[1744780582849,0.00942882,83783.0,83782.0,0.2406503]
[1744780583246,0.00950882,83783.0,83782.0,0.2406503]
[1744780583951,0.00950882,83783.0,83782.0,0.2416503]
[1744780584457,0.00950882,83783.0,83782.0,0.9632503]
[1744780584950,0.00017897,83787.0,83786.0,0.1193612]
[1744780585451,0.00017897,83787.0,83786.0,0.1830612]
[1744780586153,0.00017897,83787.0,83786.0,0.5438612]
[1744780590357,0.0596721,83798.0,83797.0,0.1193455]
[1744780590557,0.0596721,83798.0,83797.0,0.4801455]
[1744780590948,0.00014581,83800.0,83799.0,0.1193427]
[1744780591362,0.00014581,83800.0,83799.0,0.1496427]
[1744780591558,0.00014581,83800.0,83799.0,0.1811427]
[1744780591858,0.1496316,83807.0,83806.0,0.1193327]
[1744780592056,0.14973961,83807.0,83806.0,0.4801327]
[1744780592249,0.1496316,83807.0,83806.0,0.4801327]